Workbook

Sheet Ratio Analysis
C4: Key Ratios - Ratio Analysis
D7: 2006 | E7: =D7+1 -> 2007 | F7: =E7+1 -> 2008 | G7: =F7+1 -> 2009
C9: Balance Sheet
C10: Cash | D10: 451,000 | E10: 464,530 | F10: 478,466 | G10: 492,820
C11: Notes Receivable | D11: 1,200 | E11: 3,200 | F11: 3,000 | G11: 3,400
C12: Accounts receivable, net | D12: 350,000 | E12: 360,500 | F12: 371,315 | G12: 382,454
C13: Total current assets | D13: 1,212,200 | E13: 1,250,530 | F13: 1,287,750 | G13: 1,326,692
C14: Total long-term assets | D14: 2,055,000 | E14: 2,115,900 | F14: 2,178,627 | G14: 2,243,236
C15: Total current liabilities | D15: 936,000 | E15: 964,080 | F15: 993,002 | G15: 1,022,792
C16: Total long-term liabilities | D16: 780,200 | E16: 807,850 | F16: 834,070 | G16: 861,682
C17: Total shareholders' equity | D17: 1,551,000 | E17: 1,594,500 | F17: 1,639,305 | G17: 1,685,454
C19: Income Statement
C20: Total sales | D20: 2,010,000 | E20: 2,060,000 | F20: 2,121,800 | G20: 2,391,800
C21: Gross profit | D21: 1,065,000 | E21: 1,086,650 | F21: 1,119,250 | G21: 1,270,900
C22: Total operating expenses | D22: 317,133 | E22: 320,767 | F22: 324,510 | G22: 328,150
C23: Income (loss) before taxes | D23: 764,117 | E23: 782,621 | F23: 811,979 | G23: 960,977
C24: Net income (loss) | D24: 615,554 | E24: 633,477 | F24: 659,057 | G24: 798,348
C26: KEY RATIOS
C28: Profitability Ratios
C29: Return on equity | D29: =IF(D17 <> 0, D24/D17, 0) -> 40% | E29: =IF(E17 <> 0, E24/E17, 0) -> 40% | F29: =IF(F17 <> 0, F24/F17, 0) -> 40% | G29: =IF(G17 <> 0, G24/G17, 0) -> 47%
C30: Return on assets | D30: =IF(D13+D14<>0,D24/(D13+D14),0) -> 19% | E30: =IF(E13+E14<>0,E24/(E13+E14),0) -> 19% | F30: =IF(F13+F14<>0,F24/(F13+F14),0) -> 19% | G30: =IF(G13+G14<>0,G24/(G13+G14),0) -> 22%
C31: Return on sales | D31: =IF(D20<>0,D24/D20,0) -> 31% | E31: =IF(E20<>0,E24/E20,0) -> 31% | F31: =IF(F20<>0,F24/F20,0) -> 31% | G31: =IF(G20<>0,G24/G20,0) -> 33%
C32: Gross profit margin | D32: =IF(D20<>0,D21/D20,0) -> 53% | E32: =IF(E20<>0,E21/E20,0) -> 53% | F32: =IF(F20<>0,F21/F20,0) -> 53% | G32: =IF(G20<>0,G21/G20,0) -> 53%
C33: Asset turnover ratio | D33: =IF(D13+D14<>0,D20/(D13+D14),0) -> 62% | E33: =IF(E13+E14<>0,E20/(E13+E14),0) -> 61% | F33: =IF(F13+F14<>0,F20/(F13+F14),0) -> 61% | G33: =IF(G13+G14<>0,G20/(G13+G14),0) -> 67%
C35: Leverage and Liquidity Ratios
C36: Current ratio | D36: =IF(D15<>0,D13/D15,0) -> 1.30 | E36: =IF(E15<>0,E13/E15,0) -> 1.30 | F36: =IF(F15<>0,F13/F15,0) -> 1.30 | G36: =IF(G15<>0,G13/G15,0) -> 1.30
C37: Quick or acid test ratio | D37: =IF(D15<>0,(D10+D11+D12)/D15,0) -> 0.86 | E37: =IF(E15<>0,(E10+E11+E12)/E15,0) -> 0.86 | F37: =IF(F15<>0,(F10+F11+F12)/F15,0) -> 0.86 | G37: =IF(G15<>0,(G10+G11+G12)/G15,0) -> 0.86
C38: Leverage ratio | D38: =IF(D17<>0,(D13+D14)/D17,0) -> 211% | E38: =IF(E17<>0,(E13+E14)/E17,0) -> 211% | F38: =IF(F17<>0,(F13+F14)/F17,0) -> 211% | G38: =IF(G17<>0,(G13+G14)/G17,0) -> 212%
C39: Long-term debt ratio | D39: =IF(D16+D17<>0,D16/(D16+D17),0) -> 0.335 | E39: =IF(E16+E17<>0,E16/(E16+E17),0) -> 0.336 | F39: =IF(F16+F17<>0,F16/(F16+F17),0) -> 0.337 | G39: =IF(G16+G17<>0,G16/(G16+G17),0) -> 0.338
C40: Debt to equity ratio | D40: =IF(D17<>0,(D15+D16)/D17,0) -> 1.107 | E40: =IF(E17<>0,(E15+E16)/E17,0) -> 1.111 | F40: =IF(F17<>0,(F15+F16)/F17,0) -> 1.115 | G40: =IF(G17<>0,(G15+G16)/G17,0) -> 1.118
